fUSD/lending_fUSD_20241013
["ID","MTS","AMOUNT","RATE_DAILY","PERIOD"]
[340179616,1728777649729,268.67,0.00010185,2]
[340179617,1728777671963,-291.27,0.00010534,2]
[340179618,1728777671987,-222.36,0.00010544,2]
[340179619,1728777672013,-323.16,0.00010549,2]
[340179620,1728777672038,-200.0,0.0001055,2]
[340179621,1728777672065,-250.0,0.00010564,2]
[340179622,1728777672090,-8850.0016,0.000109,2]
[340179623,1728777672115,-2500.0,0.000109,2]
[340179624,1728777672141,-1232.10124146,0.000109,2]
[340179625,1728777672168,-3535.29955196,0.000109,2]
[340179626,1728777744227,-4247.6888,0.000109,2]
[340179627,1728777744439,-490.1147,0.000109,2]
[340179628,1728777744461,-155.22,0.00010959,2]
[340179629,1728777744482,-160.87,0.00010959,2]
[340179630,1728777744502,-250.0,0.00010959,2]
[340179631,1728777744523,-1967.1481492,0.00010994,2]
[340179632,1728777744544,-1442.0917706,0.00010994,2]
[340179633,1728777745921,32686.8665802,0.00010999,2]
[340179634,1728777750782,150.0,0.00020402,120]
[340179671,1728777959650,-942.510451,0.00010489,2]
[340179672,1728777959674,-250.0,0.00010542,2]
[340179673,1728777959697,-1463.7615,0.000109,2]
[340179674,1728777959723,-796.6753,0.000109,2]
[340179675,1728777959748,-1108.89111735,0.000109,2]
[340179676,1728777959770,-6438.16163165,0.000109,2]
[340179677,1728778013313,-840.0,0.00010407,2]
[340179678,1728778013340,-300.0,0.00010899,2]
[340179683,1728778027884,-860.0,0.000109,2]
[340179689,1728778061307,-245.11,0.00010502,2]
[340179690,1728778121283,313.64,8.595e-05,2]
[340179794,1728778194730,-313.64,0.00010859,2]
[340179795,1728778194757,-886.36,0.000109,2]
[340179805,1728778232301,-23.2385,0.000109,2]
[340179806,1728778232310,-156.95,0.00010959,2]
[340179807,1728778232319,-165.34,0.00010959,2]
[340179808,1728778232328,-113.72671106,0.00010993,2]
[340179809,1728778232340,-36.27328894,0.00010993,2]
[340179810,1728778232349,-661.61707169,0.00010994,2]
[340179815,1728778238420,-320.21631685,0.00010994,2]
[340179816,1728778238430,-435.19564006,0.00010994,2]
[340179817,1728778238524,-137.81826424,0.00010994,2]
[340179818,1728778238534,-1957.12002792,0.00010994,2]
[340179819,1728778238577,-1001.13139991,0.00010994,2]
[340179820,1728778238684,-3631.32700826,0.00010994,2]
[340179823,1728778240309,-408.00721479,0.00010994,2]
[340179824,1728778240518,-575.92612752,0.00010994,2]
[340179825,1728778240527,-815.18022648,0.00010994,2]
[340179831,1728778240732,-1431.07758015,0.00010994,2]
[340179834,1728778240750,-559.38,0.00010994,2]
[340179836,1728778240761,-332.2165,0.00010994,2]
[340179858,1728778243547,-287.0999999,0.00010994,2]
[340179871,1728778246311,-2161.14345247,0.00010994,2]
[340179873,1728778246319,-251.8570959,0.00010994,2]
[340179874,1728778246328,-477.511587,0.00010994,2]
[340179876,1728778246337,-3464.53005903,0.00011,2]
[340179886,1728778246734,-13346.18335673,0.00011,2]
[340179887,1728778246745,-498.60342001,0.00011,2]
[340179889,1728778614782,500.0,0.00014003,10]
[340179890,1728778692512,506.1418409,0.00010167,2]
[340179891,1728778693822,329.5588634,0.00010167,2]
[340179892,1728778740242,293.82,8.626e-05,2]
[340179897,1728779271681,290.1,8.465e-05,2]
[340179898,1728779278013,1235.93816103,0.0001,2]
[340179968,1728779404140,304.97,0.00010195,2]
[340179980,1728779431611,-300.93,0.00010276,2]
[340179981,1728779431631,-96.04372771,0.00010383,2]
[340179982,1728779431645,-153.95627229,0.00010383,2]
[340179983,1728779431656,-247.33,0.00010546,2]
[340179984,1728779431668,-1000.0,0.00010586,2]
[340179985,1728779431680,-177.88,0.000106,2]
[340179986,1728779431691,-247.44,0.00010639,2]
[340179987,1728779431705,-290.1,0.00010729,2]
[340179988,1728779431717,-514.9049,0.0001078,2]
[340179989,1728779431730,-385.97,0.000108,2]
[340179990,1728779431742,-296.63762292,0.0001088,2]
[340179991,1728779431769,-5824.28536419,0.0001088,2]
[340179992,1728779431792,-500.97419404,0.0001088,2]
[340179994,1728779437614,-3968.89611427,0.0001088,2]
[340179995,1728779437625,-975.55,0.000109,2]
[340179996,1728779437635,-755.66,0.000109,2]
[340179997,1728779437646,-1083.0,0.0001092,2]
[340179998,1728779437657,-188.79,0.00010959,2]
[340179999,1728779437668,-160.87,0.00010959,2]
[340180000,1728779437678,-156.22,0.00010959,2]
[340180001,1728779437690,-1101.1745006,0.00010997,2]
[340180002,1728779437702,-1476.86356218,0.00010997,2]
[340180003,1728779437830,-593.88,0.00010997,2]
[340180004,1728779437845,-821.78900942,0.00010997,2]
[340180005,1728779437855,-1183.33236059,0.00010997,2]
[340180006,1728779439764,-949.82555681,0.00010997,2]
[340180007,1728779439777,-696.86931599,0.00010999,2]
[340180008,1728779439790,-292.22500001,0.00010999,2]
[340180092,1728779442798,-11041.55185501,0.00010999,2]
[340180095,1728779445597,-552.78943765,0.00010999,2]
[340180096,1728779445653,-64341.71917482,0.00010999,2]
[340180097,1728779445664,-3682.21703362,0.00010999,2]
[340180098,1728779445674,-2690.21737158,0.00011,2]
[340180099,1728779445874,-25282.99317751,0.00011,2]
[340180102,1728779821018,284.21,8.317e-05,2]
[340180103,1728780039542,347.54,0.00010119,2]
[340180104,1728780199826,500.0,0.00010038,2]
[340180105,1728780253708,250.0,0.00010143,2]
[340180106,1728780279611,274.04,0.00010194,2]
[340180107,1728780280735,197.86,0.00010194,2]
[340180108,1728780293709,635.20438648,0.00010177,2]
[340180109,1728780295034,1000.0,0.00010223,2]
[340180116,1728780369061,281.55,8.301e-05,2]
[340180117,1728780386099,224.2,0.00010194,2]
[340180122,1728780412455,159.18,0.00010219,2]
[340180146,1728780438671,23900.0,0.00010194,2]
[340180299,1728780615429,1224.01,0.0001023,2]
[340180307,1728780631753,-432.92,0.00010269,2]
[340180308,1728780631765,-31.73,0.00010269,2]
[340180309,1728780631774,-232.98,0.00010386,2]
[340180310,1728780631784,-281.55,0.00010565,2]
[340180311,1728780631793,-288.04,0.00010859,2]
[340180312,1728780631802,-279.203638,0.00010859,2]
[340180313,1728780631813,-420.75153955,0.00010859,2]
[340180314,1728780631824,-919.70999,0.00010859,2]
[340180315,1728780631837,-1805.73003245,0.00010859,2]
[340180316,1728780631846,-150.0,0.00010899,2]
[340180317,1728780631855,-755.66,0.000109,2]
[340180318,1728780631864,-1069.62,0.000109,2]
[340180319,1728780631873,-8852.88,0.000109,2]
[340180320,1728780631885,-159.92,0.00010959,2]
[340180321,1728780631894,-155.39,0.00010959,2]
[340180322,1728780631903,-150.0,0.00010959,2]
[340180323,1728780631912,-1500.0,0.00010959,2]
[340180324,1728780631921,-250.0,0.00010959,2]
[340180325,1728780631930,-2059.44,0.00010959,2]
[340180326,1728780631939,-9794.15,0.00010959,2]
[340180327,1728780631949,-499.99,0.00010959,2]
[340180329,1728780631958,-2879.8771646,0.00010997,2]
[340180331,1728780631967,-4731.6648674,0.00010997,2]
[340180332,1728780631978,-1588.0619279,0.00010997,2]
[340180333,1728780631991,-2894.1778097,0.00010997,2]
[340180334,1728780632001,-509.0,0.00011,2]
[340180335,1728780632011,-75003.20350958,0.00011,2]
[340180336,1728780632021,-26241.06513831,0.00011,2]
[340180337,1728780632035,-28676.34587445,0.00011,2]
[340180338,1728780632052,-29696.18775737,0.00011,2]
[340180339,1728780632064,-6200.37173994,0.00011,2]
[340180340,1728780632082,-347.96815075,0.00011,2]
[340180341,1728780632094,-1028.87000273,0.00011,2]
[340180342,1728780632105,-2856.53146261,0.00011,2]
[340180343,1728780632118,-9652.37778613,0.00011,2]
[340180353,1728780637707,-874.83664324,0.00010859,2]
[340180354,1728780637719,-325.88,0.00010859,2]
[340180355,1728780637769,-1682.74138119,0.00010859,2]
[340180356,1728780637824,-3356.43510692,0.00010859,2]
[340180357,1728780637834,-2282.03005233,0.00011,2]
[340180358,1728780637848,-438.4411329,0.00011,2]
[340180359,1728780637881,-14228.550498,0.00011,2]
[340180360,1728780637892,-797.694581,0.00011,2]
[340180361,1728780637904,-2820.66603228,0.00011,2]
[340180362,1728780637989,-533.69189524,0.00011,2]
[340180363,1728780638000,-2739.56354077,0.00011,2]
[340180480,1728780639756,-1886.52,0.00011,2]
[340180767,1728780642783,-173.09489,0.0001089,2]
[340180769,1728780642793,-128.50011,0.00011,2]
[340180772,1728780642804,-46673.44707876,0.00011,2]
[340180776,1728780642838,-5402.62560266,0.00011,2]
[340180782,1728780642895,-1711.80000004,0.00011,2]
[340180967,1728780646060,-38886.8984,0.00011,2]
[340180969,1728780666134,493.3932,0.00010169,2]
[340180970,1728780671891,600.0,0.000102,3]
[340180971,1728780673997,1200.0,0.000103,3]
[340180972,1728780676223,1800.0,0.000104,3]
[340180973,1728780678326,2400.0,0.000105,3]
[340180974,1728780680407,3000.0,0.000106,3]
[340180975,1728780682519,600.0,0.000107,3]
[340180976,1728780684618,600.0,0.000108,3]
[340180977,1728780686758,600.0,0.000109,3]
[340180979,1728780798721,500.0,0.00010088,2]
[340180980,1728780934771,250.0,0.00010205,2]
[340180981,1728780943500,23880.0,0.00010205,2]
[340180982,1728780995985,159.18,0.00010201,2]
[340180983,1728781057687,151.8,0.00010212,2]
[340180984,1728781082705,276.73,8.318e-05,2]
[340180985,1728781391321,186.38,0.00010162,2]
[340180986,1728781454710,250.0,0.00010184,2]
[340180987,1728781512096,23521.43,0.00010142,2]
[340180988,1728781613168,1000.0,0.00010099,2]
[340180990,1728781630287,274.11,8.244e-05,2]
[340181001,1728781664991,187.96,0.00010097,2]
[340181074,1728781831843,-177.88,0.0001028,2]
[340181075,1728781831853,-274.11,0.00010508,2]
[340181076,1728781831863,-710.57298601,0.000107,2]
[340181077,1728781831872,-150.0,0.00010717,2]
[340181078,1728781831887,-300.0,0.00010717,2]
[340181079,1728781831896,-1399.86071476,0.00010718,2]
[340181080,1728781831908,-5484.94931223,0.00010718,2]
[340181081,1728781831963,-920.06431593,0.00010718,2]
[340181082,1728781832084,-812.9464343,0.00010718,2]
[340181083,1728781832096,-219617.53100069,0.00010718,2]
[340181084,1728781832105,-8073.3963,0.000108,2]
[340181085,1728781832115,-500.0,0.00010873,2]
[340181086,1728781832124,-1829.057619,0.000109,2]
[340181087,1728781832134,-39237.35370629,0.000109,2]
[340181088,1728781832147,-61618.20238323,0.000109,2]
[340181089,1728781832158,-24996.88478858,0.000109,2]
[340181102,1728781838069,-1533.5136219,0.000109,2]
[340181103,1728781838078,-6638.50496752,0.000109,2]
[340181104,1728781838101,-516.07115909,0.000109,2]
[340181105,1728781838219,-601.04421865,0.000109,2]
[340181163,1728781839912,-2537.03952318,0.000109,2]
[340181164,1728781839923,-634.457277,0.000109,2]
[340181165,1728781839934,-984.9210532,0.000109,2]
[340181166,1728781839975,-550.50093868,0.000109,2]
[340181167,1728781840149,-430.42536268,0.000109,2]
[340181168,1728781840159,-500.0,0.000109,2]
[340181169,1728781840168,-1210.83191809,0.000109,2]
[340181170,1728781840179,-662.70634916,0.000109,2]
[340181171,1728781840189,-2268.67787893,0.000109,2]
[340181172,1728781840201,-4465.35320515,0.000109,2]
[340181173,1728781840212,-807.664508,0.000109,2]
[340181174,1728781840895,-2144.15986426,0.000109,2]
[340181175,1728781840907,-1593.75750387,0.000109,2]
[340181176,1728781840918,-630.25841339,0.000109,2]
[340181177,1728781840956,-2511.31265484,0.000109,2]
[340181178,1728781840968,-2954.1894928,0.000109,2]
[340181260,1728781842976,-1000.0,0.000109,2]
[340181261,1728781843088,-500.0,0.000109,2]
[340181262,1728781843261,-500.5800002,0.000109,2]
[340181263,1728781843272,-46673.44707876,0.000109,2]
[340181269,1728781846075,-25458.41,0.000109,2]
[340181280,1728781903792,158.28,0.00010206,2]
[340181304,1728782078396,250.0,0.00010196,2]
[340181305,1728782091565,250.0,0.00010175,2]
[340181306,1728782132320,267.99,8.237e-05,2]
[340181307,1728782177838,187.96,0.00010134,2]
[340181308,1728782269204,224.2,0.00010077,2]
[340181309,1728782376681,1000.0,0.00010114,2]
[340181310,1728782442057,177.88,0.00010133,2]
[340181311,1728782517475,6176.46,0.00010115,2]
[340181312,1728782643700,250.0,0.00010124,2]
[340181313,1728782661505,250.0,0.00010145,2]
[340181327,1728782830941,264.8,8.223e-05,2]
[340181355,1728782905930,200.0,0.00010141,2]
[340181465,1728782972119,186.38,0.00010125,2]
[340181498,1728783032195,-299.00615911,0.00010401,2]
[340181504,1728783038361,-285.49172499,0.00010401,2]
[340181505,1728783038374,-3030.03886661,0.00010401,2]
[340181506,1728783038384,-282.95932437,0.00010401,2]
[340181507,1728783038395,-566.76354058,0.00010401,2]
[340181508,1728783038408,-63.42033118,0.00010401,2]
[340181509,1728783038418,-264.8,0.00010487,2]
[340181510,1728783038431,-638.4923503,0.000106,2]
[340181511,1728783038443,-361.5076497,0.000106,2]
[340181512,1728783038452,-177.29148219,0.00010618,2]
[340181513,1728783038463,-227.94741781,0.00010618,2]
[340181514,1728783038473,-171.297022,0.00010637,2]
[340181515,1728783038484,-215.1097,0.0001089,2]
[340181516,1728783038493,-150.0,0.00010899,2]
[340181517,1728783038502,-58.13603566,0.00010899,2]
[340181518,1728783038512,-241.86396434,0.00010899,2]
[340181519,1728783038522,-189.62038107,0.00010899,2]
[340181520,1728783038531,-189.62038106,0.00010899,2]
[340181521,1728783038540,-82.89814905,0.00010899,2]
[340181522,1728783038551,-106.72223201,0.00010899,2]
[340181523,1728783038560,-189.62038106,0.00010899,2]
[340181524,1728783038569,-189.62038106,0.00010899,2]
[340181525,1728783038578,-177.69224025,0.00010899,2]
[340181526,1728783038589,-11.92814081,0.00010899,2]
[340181527,1728783038598,-189.62038106,0.00010899,2]
[340181528,1728783038607,-189.62038106,0.00010899,2]
[340181529,1728783038615,-212.28,0.000109,2]
[340181530,1728783038625,-151.0,0.000109,2]
[340181531,1728783038635,-2770.34946188,0.000109,2]
[340181532,1728783038660,-951.55594794,0.000109,2]
[340181533,1728783038671,-5648.78539018,0.000109,2]
[340181534,1728783038680,-695.018092,0.000109,2]
[340181535,1728783038691,-381.33465368,0.000109,2]
[340181536,1728783038702,-2113.65355014,0.000109,2]
[340181537,1728783038713,-26976.29541999,0.000109,2]
[340181538,1728783038724,-1357.22542988,0.000109,2]
[340181539,1728783038735,-2084.0327375,0.000109,2]
[340181540,1728783038747,-3251.88530753,0.000109,2]
[340181541,1728783038758,-2166.78342138,0.000109,2]
[340181542,1728783038778,-1520.98047815,0.000109,2]
[340181543,1728783038789,-358.33485164,0.000109,2]
[340181649,1728783040269,-485.3980518,0.000109,2]
[340181650,1728783040281,-543.28849319,0.000109,2]
[340181651,1728783040293,-410.13177793,0.000109,2]
[340181652,1728783040412,-1102.85366907,0.000109,2]
[340181653,1728783040424,-3775.46246612,0.000109,2]
[340181654,1728783040433,-165.67827755,0.000109,2]
[340181655,1728783040442,-335.3410768,0.000109,2]
[340181667,1728783043900,-189.62038106,0.000109,2]
[340181668,1728783043909,-1664.6589232,0.000109,2]
[340181669,1728783043919,-200.0,0.000109,2]
[340181670,1728783043929,-499.99,0.000109,2]
[340181671,1728783043939,-1835.28520303,0.000109,2]
[340181672,1728783043948,-1835.28520303,0.000109,2]
[340181673,1728783043958,-1000.0,0.000109,2]
[340181674,1728783043967,-2000.0,0.000109,2]
[340181675,1728783043977,-200.0,0.000109,2]
[340181676,1728783043986,-185.90366227,0.000109,2]
[340181677,1728783043996,-2047.47935272,0.000109,2]
[340181678,1728783044005,-516.5994,0.00010945,2]
[340181679,1728783044014,-153.55,0.00010959,2]
[340181680,1728783044024,-179.35,0.00010959,2]
[340181681,1728783044033,-151.0,0.00010959,2]
[340181682,1728783044043,-154.57,0.00010959,2]
[340181683,1728783044052,-150.0,0.00010959,2]
[340181684,1728783044062,-2801.35,0.00010959,2]
[340181685,1728783044071,-1500.0,0.00010959,2]
[340181686,1728783044080,-250.0,0.00010959,2]
[340181687,1728783044090,-346.68,0.00010959,2]
[340181688,1728783044099,-508.73,0.00010959,2]
[340181689,1728783044109,-167.14,0.00010959,2]
[340181690,1728783044119,-151.0,0.00010959,2]
[340181691,1728783044129,-150.99,0.00010959,2]
[340181692,1728783044138,-358.75,0.00010959,2]
[340181693,1728783044148,-151.0,0.00010973,2]
[340181694,1728783044157,-3646.35,0.00010973,2]
[340181695,1728783044167,-3977.25,0.00010973,2]
[340181696,1728783044176,-397.78,0.00010973,2]
[340181697,1728783044186,-19318.95495887,0.0001099,2]
[340181709,1728783046295,-65938.19499278,0.0001099,2]
[340181710,1728783046306,-3203.468,0.0001099,2]
[340181711,1728783046316,-153.121,0.0001099,2]
[340181712,1728783046326,-870.768,0.0001099,2]
[340181713,1728783046338,-1085.507,0.0001099,2]
[340181714,1728783046348,-1310.8742065,0.00010997,2]
[340181715,1728783046357,-1977.7048784,0.00010997,2]
[340181716,1728783046366,-264.9433704,0.00010997,2]
[340181717,1728783046375,-150.01,0.00010999,2]
[340181718,1728783046386,-568.14461967,0.00010999,2]
[340181719,1728783046395,-239.49380713,0.00010999,2]
[340181720,1728783046404,-622.0,0.00011,2]
[340181721,1728783046414,-72241.95292198,0.00011,2]
[340181722,1728783046423,-282234.60125304,0.00011,2]
[340181723,1728783046435,-349.99877428,0.00011,2]
[340181724,1728783046456,-3152.5,0.00011,2]
[340181725,1728783046467,-664.41956008,0.00011,2]
[340181727,1728783057459,211.51236741,5.784e-05,7]
[340181728,1728783062207,194.33,0.00013144,120]
[340181730,1728783356287,248.89,8.291e-05,2]
[340181731,1728783413364,840.0,0.0001017,2]
[340181733,1728783711741,152.4,8.16e-05,2]
[340181734,1728783796295,250.0,0.00010152,2]
[340181735,1728783799366,500.0,8.095e-05,2]
[340181739,1728783980384,246.37,8.289e-05,2]
[340181740,1728784000975,328.0,0.00010186,2]
[340181764,1728784103093,-165.29302943,0.00010553,2]
[340181765,1728784103115,-246.37,0.00010553,2]
[340181766,1728784103136,-800.40000344,0.00010618,2]
[340181767,1728784103158,-1000.0,0.000108,2]
[340181768,1728784103179,-8280.0,0.0001089,2]
[340181769,1728784103200,-2047.47935272,0.0001089,2]
[340181770,1728784103222,-150.0,0.00010899,2]
[340181771,1728784103243,-6892.4517,0.000109,2]
[340181772,1728784103264,-15018.00591441,0.000109,2]
[340181859,1728784232463,-177.88,0.00010533,2]
[340181860,1728784232473,-112.952,0.000109,2]
[340181873,1728784238480,-998.54328059,0.000109,2]
[340181978,1728784240627,-4956.4384741,0.000109,2]
[340181979,1728784240639,-344.5470091,0.000109,2]
[340181980,1728784240651,-636.90425063,0.000109,2]
[340181981,1728784240662,-258.3184556,0.000109,2]
[340181982,1728784240817,-2396.58360006,0.000109,2]
[340181994,1728784243426,-2074.78449861,0.000109,2]
[340182005,1728784243608,-825.19670139,0.000109,2]
[340182006,1728784243620,-3702.05851551,0.000109,2]
[340182007,1728784243630,-6012.4532,0.000109,2]
[340182008,1728784243640,-156.95470195,0.000109,2]
[340182009,1728784243650,-414.90243497,0.000109,2]
[340182010,1728784243661,-624.56603727,0.000109,2]
[340182011,1728784243670,-508.73,0.00010945,2]
[340182012,1728784243680,-2810.05,0.00010945,2]
[340182013,1728784243690,-522.519,0.00010945,2]
[340182014,1728784243699,-163.55,0.00010959,2]
[340182015,1728784243708,-171.46,0.00010959,2]
[340182016,1728784243717,-153.55,0.00010959,2]
[340182017,1728784243726,-1500.0,0.00010959,2]
[340182018,1728784243738,-150.0,0.00010959,2]
[340182019,1728784243880,-250.0,0.00010959,2]
[340182020,1728784243889,-499.99,0.00010959,2]
[340182021,1728784243900,-150.99,0.00010959,2]
[340182022,1728784243911,-349.54,0.00010959,2]
[340182023,1728784243922,-167.14,0.00010959,2]
[340182024,1728784243931,-3650.67,0.0001099,2]
[340182025,1728784243942,-399.11,0.0001099,2]
[340182026,1728784243951,-3983.15,0.0001099,2]
[340182027,1728784243959,-359.52,0.0001099,2]
[340182028,1728784243968,-936.367,0.0001099,2]
[340182029,1728784243978,-150.0,0.0001099,2]
[340182030,1728784243988,-2003.8828578,0.00010994,2]
[340182031,1728784243997,-3606.8616023,0.00010994,2]
[340182032,1728784244012,-2453.9676215,0.00010994,2]
[340182033,1728784244022,-221.50408875,0.00010997,2]
[340182034,1728784244033,-563.0,0.00011,2]
[340182035,1728784244043,-9037.96294168,0.00011,2]
[340182048,1728784246366,-987.59305465,0.00011,2]
[340182050,1728784246526,-56461.74590284,0.00011,2]
[340182051,1728784246535,-183062.066352,0.00011,2]
[340182057,1728784391979,-250.0,0.00010587,2]
[340182058,1728784392001,-705.01,0.00010836,2]
[340182059,1728784392021,-300.0,0.00010899,2]
[340182060,1728784392042,-1006.0,0.000109,2]
[340182061,1728784392066,-1353.5115,0.000109,2]
[340182062,1728784392087,-185.90366227,0.000109,2]
[340182063,1728784392110,-1749.7165,0.000109,2]
[340182064,1728784392135,-899.5214,0.000109,2]
[340182065,1728784392158,-277.6066,0.000109,2]
[340182066,1728784392178,-29972.73033773,0.000109,2]
[340182067,1728784561935,231.65,8.714e-05,2]
[340182068,1728784622034,220.0,0.00013141,30]
[340182069,1728785082389,230.22,8.454e-05,2]
[340182227,1728785431660,-250.0,0.0001027,2]
[340182228,1728785431674,-182.78,0.00010623,2]
[340182229,1728785431684,-1056.61904813,0.00010682,2]
[340182230,1728785431694,-230.22,0.00010717,2]
[340182231,1728785431708,-984.49654233,0.00010725,2]
[340182232,1728785431720,-15.50345767,0.00010725,2]
[340182233,1728785431730,-150.0,0.00010735,2]
[340182234,1728785431739,-179.77,0.00010874,2]
[340182235,1728785431749,-150.75805027,0.00010899,2]
[340182236,1728785431895,-149.24194973,0.00010899,2]
[340182237,1728785431905,-150.0,0.00010899,2]
[340182238,1728785431915,-7.24805024,0.000109,2]
[340182239,1728785431930,-3694.81044976,0.000109,2]
[340182240,1728785431940,-1207.08265106,0.000109,2]
[340182241,1728785431951,-827.66419494,0.000109,2]
[340182256,1728785437940,-2563.70475859,0.000109,2]
[340182257,1728785437951,-982.08375514,0.000109,2]
[340182258,1728785437964,-337.1204912,0.000109,2]
[340182259,1728785437976,-541.90799385,0.000109,2]
[340182260,1728785437987,-276.14857609,0.000109,2]
[340182261,1728785437998,-7474.19999996,0.000109,2]
[340182262,1728785438009,-443.81585153,0.000109,2]
[340182263,1728785438019,-697.22222227,0.000109,2]
[340182264,1728785438030,-574.98736815,0.000109,2]
[340182265,1728785438041,-1400.2857462,0.000109,2]
[340182266,1728785438052,-1090.92427551,0.000109,2]
[340182267,1728785438123,-1732.37999999,0.000109,2]
[340182269,1728785438135,-2047.73162433,0.000109,2]
[340182270,1728785438147,-4314.98017366,0.000109,2]
[340182324,1728785439525,-470.65742043,0.000109,2]
[340182326,1728785439725,-15399.58995937,0.000109,2]
[340182327,1728785439735,-353.3548,0.000109,2]
[340182328,1728785439744,-452.3925,0.000109,2]
[340182329,1728785439754,-6012.4532,0.000109,2]
[340182330,1728785439763,-2291.7117,0.000109,2]
[340182331,1728785439773,-1836.58427138,0.000109,2]
[340182332,1728785439782,-1836.58427138,0.000109,2]
[340182333,1728785439792,-156.95470195,0.000109,2]
[340182334,1728785439801,-414.90243497,0.000109,2]
[340182335,1728785439810,-1558.47750745,0.000109,2]
[340182336,1728785439820,-172.07294217,0.000109,2]
[340182337,1728785439829,-169.56295467,0.000109,2]
[340182338,1728785439838,-2810.05,0.00010945,2]
[340182339,1728785439847,-499.99,0.00010945,2]
[340182340,1728785439856,-150.99,0.00010945,2]
[340182341,1728785439865,-803.7467,0.00010945,2]
[340182342,1728785439874,-508.73,0.00010945,2]
[340182343,1728785439883,-3650.67,0.00010945,2]
[340182344,1728785439892,-359.52,0.00010945,2]
[340182345,1728785439901,-179.59,0.00010959,2]
[340182346,1728785439910,-153.91,0.00010959,2]
[340182347,1728785439919,-150.0,0.00010959,2]
[340182348,1728785439930,-250.0,0.00010959,2]
[340182349,1728785439939,-157.28,0.00010959,2]
[340182350,1728785439948,-399.11,0.00010959,2]
[340182351,1728785439957,-5015.83,0.00010959,2]
[340182352,1728785439967,-167.14,0.00010959,2]
[340182353,1728785439975,-349.54,0.00010959,2]
[340182354,1728785439984,-1500.0,0.00010959,2]
[340182355,1728785439993,-3983.15,0.00010978,2]
[340182356,1728785440002,-936.367,0.0001099,2]
[340182357,1728785440011,-333.9804763,0.00010994,2]
[340182358,1728785440020,-408.9946036,0.00010994,2]
[340182359,1728785440029,-3325.4060761,0.00010994,2]
[340182360,1728785440039,-3557.15537111,0.00010994,2]
[340182361,1728785440050,-358.02239843,0.00010994,2]
[340182362,1728785440061,-429.15446819,0.00010994,2]
[340182363,1728785440072,-340.42157572,0.00010994,2]
[340182364,1728785440090,-676.78766256,0.00010994,2]
[340182365,1728785440101,-11830.28601859,0.00010994,2]
[340182366,1728785440110,-562.0,0.00011,2]
[340182367,1728785440119,-20440.12331649,0.00011,2]
[340182369,1728785440130,-552.33090042,0.00011,2]
[340182371,1728785440141,-1064.4559759,0.00011,2]
[340182373,1728785440151,-1990.44333304,0.00011,2]
[340182374,1728785440162,-418.28382068,0.00011,2]
[340182413,1728785442829,-38246.45546547,0.00011,2]
[340182414,1728785442839,-7427.99453626,0.00011,2]
[340182415,1728785442851,-734.13421425,0.00011,2]
[340182420,1728785445995,-42555.83706298,0.00011,2]
[340182422,1728785613565,216.85,8.64e-05,2]
[340182423,1728785970496,11517.0,0.000103,5]
[340182424,1728786177003,226.21,8.282e-05,2]
[340182425,1728786193812,-194.13,0.00010272,2]
[340182426,1728786193840,-168.08,0.00010281,2]
[340182427,1728786193866,-250.0,0.00010325,2]
[340182428,1728786193890,-1000.0,0.00010508,2]
[340182429,1728786193915,-226.21,0.00010546,2]
[340182430,1728786193941,-3354.2536,0.000107,2]
[340182431,1728786193967,-223.0,0.00010799,2]